bitfinex-derivatives/quotes_SOLF0:USTF0_20241103
["timestamp","ask_amount","ask_price","bid_price","bid_amount"]
[1730640615567,1.2699,163.15,163.09,3.0667]
[1730640615568,3.0662,163.13,163.09,3.0667]
[1730640615872,3.0662,163.13,163.06,2.675]
[1730640615873,4.4759,163.19,163.06,2.675]
[1730640616078,4.4759,163.19,163.07,1.2746]
[1730640616375,3.0654,163.17,163.12,3.0661]
[1730640616574,4.4759,163.19,163.12,3.0661]
[1730640617578,3.0655,163.17,163.12,3.0661]
[1730640618273,3.0661,163.13,163.09,3.0667]
[1730640618459,4.4759,163.19,163.06,5.835]
[1730640618860,3.066,163.14,163.1,3.0666]
[1730640621080,3.0658,163.15,163.06,5.835]
[1730640621371,3.16,163.19,163.06,5.835]
[1730640621869,3.0654,163.17,163.13,3.066]
[1730640622470,3.0654,163.17,163.14,3.0658]
[1730640622978,3.0661,163.13,163.09,3.0667]
[1730640623381,3.16,163.19,163.06,5.835]
[1730640623879,3.16,163.19,163.12,3.0662]
[1730640624278,3.0657,163.16,163.12,3.0662]
[1730640624472,3.16,163.19,163.12,3.0662]
[1730640625076,21.58,163.19,163.09,3.0667]
[1730640625476,3.0664,163.12,163.09,3.0667]
[1730640627182,3.0667,163.1,163.06,2.675]
[1730640627383,21.58,163.19,163.06,2.675]
[1730640628181,3.0667,163.1,163.06,5.7423]
[1730640628983,3.0668,163.1,163.06,5.7423]
[1730640630889,3.16,163.14,163.06,2.675]
[1730640631194,21.58,163.14,162.98,1.3871]
[1730640631389,1.3443,163.13,162.99,3.16]
[1730640632302,3.0679,163.04,163.01,3.0682]
[1730640633483,3.16,163.09,162.99,3.16]
[1730640633684,1.3845,163.08,162.98,1.3319]
[1730640633888,1.3845,163.08,162.96,4.4267]
[1730640633889,2.7307,163.08,162.96,4.4267]
[1730640634184,3.0685,163.0,162.97,3.069]
[1730640634891,2.7307,163.08,162.87,3.16]
[1730640634892,21.58,163.02,162.87,3.16]
[1730640635199,7.2863,163.01,162.87,5.8466]
[1730640635381,3.0705,162.9,162.85,3.0713]
[1730640635789,3.16,162.94,162.82,5.7299]
[1730640636096,3.16,162.94,162.83,1.12807777]
[1730640637186,3.16,162.94,162.82,5.7299]
[1730640637382,3.0702,162.91,162.86,3.0711]
[1730640638395,3.071,162.87,162.82,5.6417]
[1730640638598,2.7184,162.93,162.82,2.5699]
[1730640640501,3.0706,162.89,162.84,3.0714]
[1730640640802,3.0707,162.89,162.84,3.0714]
[1730640641399,21.58,162.92,162.77,35.57926845]
[1730640641702,21.58,162.92,162.76,5.7725]
[1730640641901,21.58,162.92,162.73,1.2627]
[1730640642105,21.58,162.92,162.67,1.3441]
[1730640642106,21.58,162.92,162.7,3.16]
[1730640642398,21.58,162.92,162.74,4.20201819]
[1730640642399,3.0726,162.79,162.74,4.20201819]
[1730640642791,3.0726,162.79,162.74,3.0733]
[1730640643698,3.22,162.81,162.74,3.0733]
[1730640643891,3.0727,162.78,162.73,3.0736]
[1730640644701,3.0727,162.78,162.7,3.22]
[1730640644898,3.0727,162.78,162.74,3.0734]
[1730640645095,3.0727,162.78,162.7,3.22]
[1730640645404,3.0727,162.78,162.71,1.12910258]
[1730640646305,3.0727,162.78,162.74,3.0734]
[1730640646899,3.0724,162.8,162.75,3.0732]
[1730640647204,3.22,162.82,162.7,3.22]
[1730640647405,3.22,162.82,162.71,1.12897877]
[1730640647789,3.0722,162.81,162.76,3.0728]
[1730640650212,3.0723,162.8,162.76,3.0728]
[1730640651004,3.22,162.84,162.78,3.0726]
[1730640652099,3.22,162.84,162.74,1.3315]
[1730640652299,3.9877,162.83,162.7,3.22]
[1730640652500,3.9877,162.83,162.71,1.12903066]
[1730640652907,3.9877,162.83,162.74,3.0734]
[1730640653306,3.0726,162.79,162.74,3.0734]
[1730640653806,3.9877,162.83,162.74,3.0734]
[1730640654009,3.0727,162.78,162.74,3.0734]
[1730640656211,3.0727,162.78,162.73,3.0735]
[1730640656396,3.0727,162.78,162.7,4.5515]
[1730640656806,3.0725,162.79,162.75,3.0731]
[1730640657510,3.073,162.76,162.7,4.5515]
[1730640657712,3.22,162.81,162.7,4.5515]
[1730640657911,3.22,162.81,162.7,1.3315]
[1730640658100,3.22,162.81,162.7,4.4055]
[1730640658101,3.0734,162.75,162.7,4.4055]
[1730640658414,3.22,162.81,162.7,1.3315]
[1730640658815,3.0727,162.78,162.71,3.0739]
[1730640659017,18.44,162.8,162.57,9.2299]
[1730640659212,18.44,162.8,162.6,2.6806]
[1730640659515,3.0741,162.71,162.66,3.0748]
[1730640659714,3.22,162.73,162.66,3.0748]
[1730640661107,3.0743,162.7,162.66,3.0748]
[1730640661503,3.22,162.73,162.63,3.22]
[1730640661807,3.22,162.73,162.64,1.12970837]
[1730640662115,3.0745,162.69,162.65,3.0751]
[1730640662299,3.22,162.73,162.63,3.22]
[1730640662499,3.22,162.73,162.61,3.22]
[1730640662721,1.3071,162.72,162.62,1.12977977]
[1730640663216,1.3071,162.72,162.6,5.9006]
[1730640663405,1.3071,162.72,162.61,1.12984497]
[1730640663614,3.0744,162.69,162.62,3.0755]
[1730640663812,1.3071,162.72,162.62,3.0755]
[1730640664011,1.3071,162.72,162.6,5.9006]
[1730640664314,1.3071,162.72,162.61,1.12985857]
[1730640664815,3.0744,162.69,162.66,3.0748]
[1730640665204,1.3071,162.72,162.6,5.9006]
[1730640665205,3.22,162.72,162.6,5.9006]
[1730640665419,3.22,162.72,162.61,1.12975513]
[1730640666116,3.0743,162.7,162.61,1.12975513]
[1730640666503,3.0743,162.7,162.67,3.0747]
[1730640666908,3.0743,162.7,162.6,5.9006]
[1730640667106,3.22,162.72,162.6,5.9006]
[1730640667107,3.0747,162.68,162.64,3.0753]
[1730640668925,3.0748,162.67,162.64,3.0753]
[1730640669316,1.3953,162.74,162.61,3.22]
[1730640669505,4.6153,162.74,162.62,1.12970689]
[1730640670013,4.6153,162.74,162.65,3.0751]
[1730640670402,3.0745,162.69,162.65,3.0751]
[1730640670608,4.6153,162.74,162.61,3.22]
[1730640670919,3.0741,162.71,162.62,1.12971171]
[1730640671132,3.0741,162.71,162.66,3.0748]
[1730640671420,3.0741,162.71,162.61,3.22]
[1730640671631,4.6153,162.74,162.66,3.0748]
[1730640671814,1.3953,162.74,162.66,3.0748]
[1730640672003,4.7027,162.75,162.61,3.22]
[1730640672209,75.43255469,162.9,162.62,4.50973703]
[1730640672210,3.38,162.8,162.62,4.50973703]
[1730640672419,6.1355,162.81,162.63,1.12941242]
[1730640672622,6.1355,162.81,162.64,1.12941242]
[1730640672818,24.5755,162.81,162.64,1.12941242]
[1730640673015,24.5755,162.81,162.65,1.12941242]
[1730640673219,24.5755,162.81,162.62,3.38]
[1730640673414,24.5755,162.81,162.63,1.12958955]
[1730640673721,3.0744,162.69,162.65,3.075]
[1730640673922,3.0744,162.69,162.62,3.38]
[1730640674122,3.0744,162.69,162.63,1.12960083]
[1730640674320,3.0742,162.7,162.66,3.0749]
[1730640674621,3.38,162.73,162.62,3.38]
[1730640674814,1.3941,162.72,162.62,3.38]
[1730640675014,3.0747,162.68,162.64,3.0753]
[1730640675419,2.7774,162.72,162.62,3.38]
[1730640675420,4.1738,162.72,162.62,3.38]
[1730640676313,3.0746,162.68,162.64,3.0752]
[1730640679522,3.0746,162.68,162.65,3.0751]
[1730640683232,3.0746,162.68,162.64,3.0752]
[1730640686220,7.5538,162.72,162.62,3.38]
[1730640686420,2.7774,162.72,162.62,3.38]
[1730640686934,2.7774,162.72,162.67,3.0747]
[1730640687430,2.7774,162.72,162.62,3.38]
[1730640687431,3.0743,162.7,162.66,3.0749]
[1730640688835,5.8512,162.72,162.66,3.0749]
[1730640689233,2.7774,162.72,162.62,3.38]
[1730640689426,1.3367,162.77,162.62,3.38]
[1730640689624,1.3367,162.77,162.63,1.12977435]
[1730640689625,3.38,162.76,162.63,1.12977435]
[1730640689819,3.0734,162.74,162.69,3.0742]
[1730640690332,3.38,162.76,162.62,3.38]
[1730640690333,3.0733,162.75,162.7,3.0741]
[1730640691635,4.0457,162.77,162.72,3.0738]
[1730640691835,4.0457,162.77,162.67,4.7352]
[1730640692136,1.352,162.77,162.67,6.0034]
[1730640692336,1.352,162.77,162.67,4.7352]
[1730640692539,1.352,162.77,162.61,6.1516]
[1730640692540,2.6633,162.76,162.64,3.38]
[1730640693543,2.6633,162.76,162.68,3.0745]
[1730640693544,3.0739,162.72,162.68,3.0745]
[1730640693929,2.6633,162.76,162.68,3.0745]
[1730640694130,3.0737,162.73,162.68,3.0745]
[1730640694428,2.6633,162.76,162.64,3.38]
[1730640694429,3.38,162.74,162.67,3.0747]
[1730640694627,3.38,162.74,162.64,3.38]
[1730640694845,3.38,162.74,162.7,3.074]
[1730640695538,3.38,162.74,162.71,3.0739]
[1730640696129,7.8049,162.77,162.73,3.0736]
[1730640696439,4.732,162.77,162.66,3.09465891]
[1730640696643,4.732,162.77,162.64,3.38]
[1730640696841,3.073,162.76,162.72,3.0737]
[1730640697329,4.732,162.77,162.68,3.09089749]
[1730640697645,4.732,162.77,162.74,3.0733]
[1730640698232,1.352,162.77,162.69,6.0832]
[1730640698443,3.0725,162.79,162.75,3.0732]
[1730640699449,3.0719,162.83,162.78,3.0725]
[1730640699629,3.38,162.86,162.78,3.0725]
[1730640699830,3.0721,162.82,162.74,3.38]
[1730640700049,3.0721,162.82,162.77,3.0728]
[1730640700261,3.0721,162.82,162.74,3.38]
[1730640701132,3.0721,162.82,162.78,3.0726]
[1730640701552,3.0718,162.83,162.79,3.0723]
[1730640702036,21.82,162.86,162.74,3.38]
[1730640702240,3.072,162.82,162.78,3.0725]
[1730640702649,21.82,162.86,162.78,3.0725]
[1730640703649,3.0721,162.82,162.78,3.0725]
[1730640703944,3.32,162.85,162.81,3.072]
[1730640704747,6.3915,162.85,162.81,3.072]
[1730640705133,3.0715,162.85,162.81,3.072]
[1730640705449,3.0715,162.84,162.81,3.072]
[1730640708845,3.32,162.86,162.79,3.0724]
[1730640708846,3.072,162.82,162.79,3.0724]
[1730640710546,3.0696,162.95,162.91,3.0701]
[1730640710757,7.4003,162.98,162.85,3.32]
[1730640711050,7.4003,162.98,162.86,3.32]
[1730640711051,25.8403,162.98,162.86,3.32]
[1730640711551,25.8403,162.98,162.82,3.32]
[1730640712046,25.8403,162.98,162.81,2.617]
[1730640712234,25.8403,162.98,162.83,3.0715]
[1730640712642,1.02385366,162.97,162.81,2.617]
[1730640712838,1.02385366,162.97,162.79,3.32]
[1730640713247,3.071,162.87,162.83,3.0717]
[1730640714444,3.32,162.9,162.79,3.32]
[1730640715248,3.0712,162.86,162.82,3.0717]
[1730640716461,6.3905,162.9,162.79,3.32]
[1730640716957,6.3905,162.9,162.86,3.0711]
[1730640717748,3.0705,162.9,162.86,3.0711]
[1730640718950,3.32,162.92,162.79,3.32]
[1730640720046,3.0706,162.89,162.79,3.32]
[1730640720760,21.76,162.92,162.79,3.32]
[1730640720954,2.601,162.91,162.79,3.32]
[1730640721546,2.601,162.91,162.77,3.32]
[1730640721959,2.601,162.91,162.77,6.40013776]
[1730640722547,3.0713,162.86,162.82,3.0717]
[1730640722746,2.601,162.91,162.77,3.32]
[1730640722946,2.601,162.91,162.74,2.6758]
[1730640723158,2.601,162.91,162.78,3.0726]
[1730640723646,2.601,162.91,162.77,3.0727]
[1730640723953,18.44,162.89,162.74,5.9958]
[1730640724155,3.0728,162.78,162.74,9.069]
[1730640724464,3.32,162.82,162.74,6.3932]
[1730640724762,23.089,162.81,162.71,3.0739]
[1730640724968,23.089,162.81,162.69,3.8841]
[1730640724969,3.32,162.8,162.69,7.2041]
[1730640725265,3.0729,162.77,162.73,3.0734]
[1730640725464,3.32,162.8,162.69,7.2041]
[1730640725767,3.073,162.77,162.72,3.0737]
[1730640725948,21.76,162.8,162.69,3.32]
[1730640726145,21.76,162.8,162.67,3.32]
[1730640726457,21.76,162.8,162.64,2.5727]
[1730640726458,21.76,162.8,162.66,3.32]
[1730640727054,3.0731,162.76,162.66,3.32]
[1730640727459,3.0731,162.76,162.67,1.2937]
[1730640727966,3.0731,162.76,162.72,3.0736]
[1730640728659,21.76,162.8,162.72,3.0736]
[1730640728854,21.76,162.8,162.67,1.2937]
[1730640729451,3.0734,162.74,162.7,3.074]
[1730640729663,21.76,162.8,162.67,1.2937]
[1730640730361,3.32,162.8,162.7,3.074]
[1730640730560,21.76,162.8,162.67,1.2937]
[1730640731150,21.76,162.8,162.69,3.0743]
[1730640731670,3.0736,162.74,162.7,3.0741]
[1730640731858,21.76,162.8,162.67,1.2937]
[1730640732168,3.54,162.79,162.67,1.2937]
[1730640733059,3.0737,162.73,162.69,3.0742]
[1730640733271,3.54,162.79,162.67,1.2937]
[1730640733455,3.0734,162.75,162.71,3.0739]
[1730640735470,3.0737,162.73,162.67,1.2937]
[1730640736056,3.0737,162.73,162.69,3.0742]
[1730640736767,21.98,162.79,162.68,3.0745]
[1730640736964,21.98,162.79,162.64,2.5727]
[1730640737360,3.0744,162.69,162.66,3.0748]
[1730640737556,3.54,162.73,162.64,2.5727]
[1730640738063,1.3023,162.72,162.58,3.06108274]
[1730640738262,3.9136,162.72,162.58,3.54]
[1730640738456,3.0746,162.68,162.63,3.0754]
[1730640738657,3.9136,162.72,162.58,6.68007645]
[1730640739056,3.9136,162.72,162.58,3.14007645]
[1730640739271,3.0748,162.67,162.63,3.0754]
[1730640739869,3.9136,162.72,162.67,3.0747]
[1730640740170,3.9136,162.72,162.59,3.54]
[1730640740376,3.0749,162.67,162.63,3.0754]
[1730640740563,3.0749,162.67,162.59,3.54]
[1730640740764,3.9136,162.72,162.59,3.54]
[1730640740967,3.0742,162.7,162.59,3.54]
[1730640741271,3.9136,162.72,162.59,3.54]
[1730640741773,3.0747,162.68,162.59,3.54]
[1730640742657,3.9136,162.72,162.59,3.54]
[1730640742658,3.0747,162.67,162.59,3.54]
[1730640743061,3.0747,162.67,162.61,3.0758]
[1730640743261,22.3536,162.72,162.59,3.54]
[1730640743466,22.3536,162.72,162.58,3.54]
[1730640743664,3.0751,162.66,162.62,3.0756]
[1730640743972,3.54,162.68,162.57,10.57957408]
[1730640744478,21.98,162.68,162.55,3.54]
[1730640744976,3.0758,162.62,162.55,3.54]
[1730640745278,3.54,162.68,162.55,3.54]
[1730640745863,21.98,162.68,162.55,3.54]
[1730640746075,21.98,162.68,162.51,7.4933]
[1730640746375,21.98,162.68,162.51,3.9533]
[1730640746676,21.98,162.68,162.51,2.5726]
[1730640746873,3.0769,162.56,162.52,3.0775]
[1730640747068,3.54,162.59,162.48,3.54]
[1730640747272,3.54,162.59,162.46,55.65288395]
[1730640747273,1.2808,162.58,162.46,55.65288395]
[1730640747577,3.0778,162.52,162.48,3.0783]
[1730640747779,3.8451,162.58,162.46,55.65288395]
[1730640747976,3.0773,162.54,162.5,3.0779]
[1730640748279,3.8451,162.58,162.46,55.65288395]
[1730640750279,3.0773,162.54,162.5,3.0778]
[1730640751089,3.8451,162.58,162.44,3.54]
[1730640751582,18.44,162.57,162.32,6.1624]
[1730640751788,18.44,162.57,162.33,8.66137012]
[1730640752085,18.44,162.57,162.34,1.13117012]
[1730640752286,24.5936,162.57,162.34,1.13117012]
[1730640752489,1.0,162.56,162.34,1.13117012]
[1730640752779,3.0782,162.49,162.4,3.0798]
[1730640752987,3.54,162.49,162.41,2.6966]
[1730640753173,3.54,162.49,162.34,3.54]
[1730640753383,3.0791,162.44,162.4,3.0798]
[1730640753585,3.54,162.49,162.34,6.2366]
[1730640753888,3.0789,162.46,162.41,3.0795]
[1730640754281,3.54,162.49,162.41,3.0795]
[1730640754490,3.0789,162.45,162.41,3.0795]
[1730640754676,3.54,162.49,162.4,3.0798]
[1730640755080,3.0791,162.44,162.4,3.0798]
[1730640755488,3.0794,162.43,162.38,3.0801]
[1730640755673,3.0794,162.43,162.34,2.6966]
[1730640755879,3.54,162.44,162.35,1.13150432]
[1730640756591,3.0793,162.43,162.39,3.0799]
[1730640757093,4.392,162.48,162.38,3.0802]
[1730640757295,4.392,162.48,162.34,2.6966]
[1730640757296,1.3136,162.48,162.34,2.6966]
[1730640757587,3.54,162.49,162.35,1.13156081]
[1730640758191,3.54,162.49,162.34,2.6966]
[1730640758391,3.54,162.49,162.36,1.13144518]
[1730640758593,3.54,162.49,162.35,1.13144518]
[1730640758808,3.54,162.49,162.37,1.13144518]
[1730640759012,3.54,162.49,162.34,2.6966]
[1730640759195,3.54,162.49,162.35,1.13151993]
[1730640759701,3.0791,162.45,162.41,3.0795]
[1730640760207,3.0792,162.44,162.4,3.0798]
[1730640760809,3.0794,162.43,162.39,3.08]
[1730640761014,2.5694,162.48,162.34,6.2366]
[1730640761214,3.64,162.47,162.35,1.13147569]
[1730640762320,3.0789,162.46,162.41,3.0795]
[1730640762505,3.64,162.47,162.34,6.2366]
[1730640762808,1.2626,162.54,162.35,1.13153477]
[1730640763015,1.2807,162.53,162.35,7.29303477]
[1730640763219,3.64,162.52,162.36,1.13153477]
[1730640763603,3.64,162.52,162.37,1.13132163]
[1730640763817,3.0779,162.51,162.48,3.0783]
[1730640764010,3.64,162.52,162.41,3.64]
[1730640764212,3.64,162.52,162.42,3.8309]
[1730640764519,3.0781,162.5,162.46,3.0786]
[1730640765321,3.0781,162.5,162.42,3.8309]
[1730640765509,3.64,162.51,162.42,3.8309]
[1730640765911,3.64,162.51,162.49,3.0781]
[1730640766311,6.7179,162.51,162.42,3.8309]
[1730640766615,3.64,162.51,162.42,3.8309]
[1730640767116,6.7179,162.51,162.47,3.0784]
[1730640767918,3.64,162.51,162.47,3.0784]
[1730640768109,3.64,162.51,162.42,3.8309]
[1730640768810,3.64,162.51,162.44,3.079]
[1730640768811,3.0784,162.48,162.44,3.079]
[1730640769515,3.0784,162.48,162.42,3.8309]
[1730640769712,3.0784,162.48,162.45,3.0789]
[1730640769912,3.0784,162.48,162.3,6.146]
[1730640769913,18.44,162.47,162.23,6.1662]
[1730640770108,18.44,162.47,162.2,89.42451303]
[1730640770109,18.44,162.45,162.24,1.13149566]
[1730640770314,18.44,162.45,162.25,4.26101181]
[1730640770515,3.0805,162.37,162.26,1.13149566]
[1730640770714,3.64,162.38,162.27,1.13149566]
[1730640770912,3.64,162.38,162.28,1.13149566]
[1730640771111,3.64,162.38,162.29,2.43739566]
[1730640771318,3.0804,162.37,162.32,3.0812]
[1730640771616,3.0804,162.37,162.29,1.3059]
[1730640771820,3.0807,162.36,162.3,1.13194375]
[1730640772519,3.64,162.38,162.3,1.13194375]
[1730640773509,1.2733,162.47,162.3,1.13194375]
[1730640773715,18.44,162.45,162.31,1.366]
[1730640774213,3.0801,162.39,162.31,1.366]
[1730640774415,3.64,162.42,162.32,1.13192315]
[1730640774613,1.2733,162.47,162.32,1.13192315]
[1730640775017,3.64,162.5,162.33,1.13192315]
[1730640775321,3.64,162.5,162.31,5.006]
[1730640775322,3.64,162.49,162.34,1.13192315]
[1730640775518,6.3328,162.49,162.31,5.006]
[1730640775727,6.3328,162.49,162.44,3.079]
[1730640775918,6.3328,162.49,162.38,3.64]
[1730640776220,6.3328,162.49,162.39,3.69785454]
[1730640776420,3.0785,162.48,162.43,3.0792]
[1730640777119,3.0781,162.5,162.46,3.0786]
[1730640777327,18.44,162.59,162.39,2.5664]
[1730640777328,3.64,162.52,162.39,2.5664]
[1730640777628,2.6928,162.58,162.39,2.5664]
[1730640777629,3.64,162.53,162.4,1.13135901]
[1730640778718,3.0782,162.49,162.45,3.0788]
[1730640779614,3.078,162.5,162.46,3.0787]
[1730640779817,3.968,162.58,162.43,3.64]
[1730640780026,3.64,162.57,162.44,1.3691]
[1730640780325,18.44,162.56,162.36,3.07801169]
[1730640780516,3.64,162.57,162.4,4.022]
[1730640780822,22.408,162.58,162.41,1.13131195]
[1730640781029,3.9,162.57,162.41,1.13131195]
[1730640781221,3.968,162.58,162.41,1.13131195]
[1730640781421,3.9,162.57,162.41,1.13131195]
[1730640781925,3.0777,162.52,162.48,3.0783]
[1730640782422,3.0774,162.53,162.49,3.078]
[1730640782724,3.9,162.57,162.45,3.9]
[1730640782923,3.0777,162.52,162.48,3.0783]
[1730640783226,22.34,162.57,162.42,3.9]
[1730640784321,3.0783,162.49,162.45,3.0788]
[1730640785040,3.968,162.58,162.42,3.9]
[1730640785041,22.34,162.52,162.42,3.9]
[1730640785224,6.5355,162.51,162.4,4.022]
[1730640786330,3.0784,162.48,162.44,3.0789]
[1730640787017,6.5355,162.51,162.42,3.0794]
[1730640787221,6.5355,162.51,162.4,2.6451]
[1730640787419,3.0787,162.47,162.43,3.0793]
[1730640788121,3.0787,162.46,162.43,3.0793]
[1730640788635,6.5355,162.51,162.4,2.6451]
[1730640788931,3.0784,162.48,162.4,2.6451]
[1730640789128,3.0784,162.48,162.45,3.0789]
[1730640790320,4.4166,162.51,162.47,3.0783]
[1730640790524,3.0778,162.51,162.4,2.6451]
[1730640791140,3.0778,162.51,162.47,3.0784]
[1730640791627,3.0776,162.52,162.4,2.6451]
[1730640792218,3.0773,162.54,162.4,2.6451]
[1730640792425,3.9,162.55,162.41,1.13121265]
[1730640792829,22.34,162.55,162.41,1.13121265]
[1730640793633,3.0782,162.49,162.45,3.0789]
[1730640793825,3.9,162.55,162.42,3.9]
[1730640794216,3.078,162.5,162.42,3.9]
[1730640794723,3.078,162.5,162.47,3.0785]
[1730640795630,3.9,162.55,162.42,3.9]
[1730640795831,3.0777,162.52,162.48,3.0782]
[1730640796035,3.9,162.55,162.48,3.0782]
[1730640796536,3.9,162.55,162.46,3.0785]
[1730640797631,3.0781,162.5,162.47,3.0785]
[1730640798634,3.0778,162.51,162.48,3.0783]
[1730640799042,3.9,162.55,162.42,3.9]
[1730640799732,3.0781,162.5,162.47,3.0785]
[1730640800631,3.0785,162.48,162.45,3.0788]
[1730640800838,22.34,162.55,162.41,3.9]
[1730640801032,22.34,162.55,162.4,2.6451]
[1730640801233,22.34,162.55,162.39,3.9]
[1730640801439,28.4943,162.55,162.38,3.9]
[1730640802538,3.079,162.45,162.38,3.9]
[1730640803331,4.0579,162.47,162.38,3.9]
[1730640803538,3.0796,162.42,162.38,3.0801]
[1730640803733,3.0796,162.42,162.36,1.276]
[1730640803938,4.0579,162.47,162.36,1.276]
[1730640804136,3.0794,162.43,162.4,3.0798]
[1730640805539,3.0794,162.43,162.39,3.08]
[1730640806339,3.0799,162.4,162.37,3.0803]
[1730640806545,18.44,162.46,162.37,3.0803]
[1730640806843,18.44,162.46,162.33,5.2683]
[1730640807149,3.0798,162.41,162.38,3.0802]
[1730640807446,3.0796,162.42,162.33,5.2683]
[1730640807750,4.0579,162.47,162.33,5.2683]
[1730640807947,4.0579,162.47,162.34,3.0702632]
[1730640808139,3.0791,162.44,162.41,3.0795]
[1730640808550,4.0579,162.47,162.34,3.0702632]
[1730640808734,5.7723,162.47,162.38,3.9]
[1730640808934,3.0786,162.47,162.38,3.9]
[1730640809144,4.0628,162.53,162.39,1.3352]
[1730640809347,3.9,162.52,162.39,2.6075]
[1730640810056,22.34,162.52,162.39,2.6075]
[1730640810242,3.0786,162.47,162.42,3.0793]
[1730640810548,3.0786,162.47,162.4,3.74]
[1730640810944,3.0786,162.47,162.43,3.0791]
[1730640811552,3.0786,162.47,162.42,3.0794]
[1730640811741,3.0786,162.47,162.4,3.74]
[1730640812845,22.34,162.52,162.43,3.0791]
[1730640813046,22.34,162.52,162.29,6.1638]
[1730640813253,22.34,162.52,162.38,3.0801]
[1730640813645,22.34,162.52,162.34,3.74]
[1730640813850,18.44,162.5,162.37,3.0803]
[1730640815042,18.44,162.46,162.37,3.0803]
[1730640815237,26.2054,162.45,162.37,3.0803]
[1730640815645,3.0798,162.41,162.37,3.0803]
[1730640815859,7.7654,162.45,162.39,3.08]
[1730640816057,6.4547,162.45,162.34,3.03816487]
[1730640816852,9.5337,162.45,162.42,3.0793]
[1730640817245,9.5337,162.45,162.33,7.8437]
[1730640817450,6.4547,162.45,162.33,7.8437]
[1730640817846,3.0793,162.44,162.4,3.0797]
[1730640818444,3.0793,162.44,162.41,3.0796]
[1730640819062,3.0794,162.43,162.39,3.0798]
[1730640819855,6.4547,162.45,162.33,7.8437]
[1730640820056,6.4547,162.45,162.38,3.0802]
[1730640820057,3.0798,162.41,162.38,3.0802]
[1730640820860,6.4547,162.45,162.33,7.8437]
[1730640822361,3.0798,162.41,162.38,3.0802]
[1730640822869,6.4547,162.45,162.36,3.0805]
[1730640823370,24.8947,162.45,162.34,3.0808]
[1730640823669,24.8947,162.45,162.28,3.74]
[1730640824164,24.8947,162.45,162.34,3.081]
[1730640825264,24.8947,162.45,162.33,3.0811]
[1730640825563,24.8947,162.45,162.26,3.9795]
[1730640825765,18.44,162.43,162.31,3.0815]
[1730640825972,18.44,162.43,162.26,7.7195]
[1730640825973,1.3663,162.42,162.26,7.7195]
[1730640826158,1.3663,162.42,162.27,1.13204846]
[1730640826362,3.0805,162.37,162.27,1.13204846]
[1730640826559,3.0805,162.37,162.26,7.7195]
[1730640826866,3.0805,162.37,162.27,1.13202724]
[1730640827052,3.0805,162.37,162.33,3.0811]
[1730640827459,3.0803,162.38,162.26,7.7195]
[1730640827657,3.0803,162.38,162.27,1.13201743]
[1730640828169,3.0803,162.38,162.26,7.7195]
[1730640828368,3.74,162.4,162.26,3.9795]
[1730640828665,3.74,162.4,162.26,7.7195]
[1730640829164,3.0805,162.37,162.26,7.7195]